Cogmind - Beta 13 @@@ ROGUE MODE // 2024.06.26 @ 19:00:40 Player: celerysam Result: Destroyed by G-47 Trooper with Particle Gun Performance ------------- Evolutions (2) 1000 Regions Visited (3) 600 Robots Destroyed (8) 40 Value Destroyed (270) 270 Prototype IDs (1) 20 Alien Tech Used (0) 0 Bonus (0) 0 TOTAL SCORE: 1930 Bonus ------- None Cogmind --------- Core Integrity 0/550 Matter 79/300 Energy 100/100 System Corruption 0% Temperature Cool (9) Movement Core (50) Location -8/Materials Parts ------- > --- POWER (2) -------- (None) > --- PROPULSION (4) --- (None) > --- UTILITY (3) ------ (None) > --- WEAPON (2) ------- (None) > --- INVENTORY (5) ---- Improved Treads Improved Treads Cooling System EM Shotgun Peak State ------------ > --- POWER ------------ Light Ion Engine > --- PROPULSION ------- Hover Unit Hover Unit Hover Unit Flight Unit > --- UTILITY ---------- Cooling System Cooling System Small Storage Unit > --- WEAPON ----------- Particle Cannon Improved Assault Rifle > --- INVENTORY -------- Improved Ion Engine Light Treads Improved Treads Improved Treads Improved Treads EM Shotgun Grenade Launcher [Rating: 16] Favorites ----------- Power Light Ion Engine Engine Light Ion Engine Power Core Light Nuclear Core Propulsion Hover Unit Treads Improved Treads Wheel Wheel Hover Unit Hover Unit Flight Unit Flight Unit Utility Small Storage Unit Device Cooling System Storage Small Storage Unit Weapon Light Assault Rifle Energy Gun Small Laser Energy Cannon Particle Cannon Ballistic Gun Light Assault Rifle Ballistic Cannon Light Cannon Build | -11 -10 -9 -8 ------- Run | Yrd Mat Mat Mat Slots Evolved 4 | . . 2 2 Power 1 | . . . 1 Propulsion 2 | . . 2 . Utility 1 | . . . 1 Weapon . | . . . . Parts Attached 27 | 6 6 8 7 Power 8 | 1 2 2 3 Engine 6 | 1 2 2 1 Core 2 | . . . 2 Reactor . | . . . . Propulsion 10 | 2 2 4 2 Treads 3 | . 2 . 1 Leg . | . . . . Wheel 3 | 2 . . 1 Hover 3 | . . 3 . Flight 1 | . . 1 . Utility 3 | 1 1 . 1 Device 2 | . 1 . 1 Storage 1 | 1 . . . Processor . | . . . . Hackware . | . . . . Protection . | . . . . Artifact . | . . . . Weapon 6 | 2 1 2 1 Energy Gun 1 | 1 . . . Energy Cannon 2 | . . 1 1 Ballistic Gun 2 | 1 . 1 . Ballistic Cannon 1 | . 1 . . Launcher . | . . . . Special Weapon . | . . . . Impact Weapon . | . . . . Slashing Weapon . | . . . . Piercing Weapon . | . . . . Special Melee Weapon . | . . . . Unidentified Prototypes 1 | . . 1 . Parts Lost 12 | . . . 12 Power 3 | . . . 3 Propulsion 5 | . . . 5 Utility 2 | . . . 2 Weapon 2 | . . . 2 Highest Loss Streak 10 | . . . 10 To Critical Strikes . | . . . . Average Slot Usage (%) 92 | . 99 100 64 Engine 11 | . 14 11 4 Treads 15 | . 28 7 . Wheel 1 | . . . 5 Hover 15 | . . 33 18 Flight 1 | . . 3 2 Device 11 | . 13 11 9 Storage 11 | . 14 11 7 Energy Gun 2 | . 5 . . Energy Cannon 2 | . . 1 8 Ballistic Gun 11 | . 14 11 7 Ballistic Cannon 7 | . 8 9 . Naked Turns . | . . . . Heaviest Build 20 | 10 16 20 17 Greatest Support 43 | 20 43 18 23 Greatest Overweight (x) 1 | . . 1 1 Average Overweight (x) . | . . . . Largest Inventory Capacity 8 | 8 8 8 8 Average Capacity 7 | 7 8 8 7 Most Carried 8 | 8 8 8 8 Average Carried 7 | 4 7 7 7 Final Capacity 8 | 8 8 8 5 Final Carried 8 | 6 8 8 4 Class Distribution -------------------- 100% | Mutant Dominant Class ---------------- Mutant | -10/Materials Mutant | -9/Materials Mutant | -8/Materials Resources | -11 -10 -9 -8 ----------- Run | Yrd Mat Mat Mat Matter Collected 269 | 173 3 34 59 Remotely . | . . . . Salvage Created 242 | . 95 34 113 Parts 17 | . 10 2 5 Haulers Intercepted . | . . . . Recyclers Shooed . | . . . . Parts Field Recycled . | . . . . Retrieved Matter . | . . . . Parts Self-Destructed . | . . . . Prevented . | . . . . Kills | -11 -10 -9 -8 ------- Run | Yrd Mat Mat Mat Combat Hostiles Destroyed 6 | . 3 1 2 Guns 1 | . . 1 . Cannons 4 | . 3 . 1 AOE 1 | . . . 1 Classes Destroyed 4 | . 2 . 2 Operator 1 | . 1 . . Watcher 1 | . . . 1 Grunt 5 | . 3 1 1 Brawler 1 | . . . 1 Best Kill Streak 2 | . 2 1 2 Combat Bots Only 2 | . 2 1 1 Max Kills in Single Turn 2 | . 1 1 2 Gunslinging . | . . . . Exploded 1 | . . . 1 Melee . | . . . . Uniques/NPCs Destroyed . | . . . . Combat | -11 -10 -9 -8 -------- Run | Yrd Mat Mat Mat Hostile Shots Fired 144 | . 31 11 102 Missed 42 | . 9 3 30 Damage Taken 1801 | . 201 102 1498 Core 614 | . 30 33 551 Absorbed by Shields . | . . . . Core Remaining (%) 93 | 100 88 91 . Volleys Fired 20 | . 9 5 6 Largest 2 | . 2 2 2 Hottest 98 | . 55 91 98 Shots Fired 39 | . 18 10 11 Gun 19 | . 9 5 5 Cannon 20 | . 9 5 6 Launcher . | . . . . Special . | . . . . Kinetic 28 | . 18 5 5 Thermal 11 | . . 5 6 Explosive . | . . . . Electromagnetic . | . . . . Robot Hit Streak 3 | . 3 3 3 Robot Miss Streak 2 | . 2 1 2 Penetration Max . | . . . . Secondary Targets . | . . . . Shots Hit Robots 22 | . 11 7 4 Core Hits 14 | . 6 3 5 Critical Kills . | . . . . Critical Parts Destroyed . | . . . . Critical Strikes . | . . . . Melee Attacks . | . . . . Impact . | . . . . Slashing . | . . . . Piercing . | . . . . Sneak Attacks . | . . . . Combat Hostiles . | . . . . Follow-up Attacks . | . . . . Damage Inflicted 786 | . 143 149 494 Guns 145 | . 39 74 32 Cannons 232 | . 101 61 70 Explosions 392 | . . . 392 Melee . | . . . . Ramming 17 | . 3 14 . Kinetic 246 | . 140 74 32 Thermal 131 | . . 61 70 Explosive 392 | . . . 392 Electromagnetic . | . . . . Impact . | . . . . Slashing . | . . . . Piercing . | . . . . Highest Corruption 1 | . . 1 . Average Corruption 1 | . . 1 . Corruption Purged . | . . . . Corruption Blocked . | . . . . Effects 1 | . . 1 . Matter Fused 1 | . . 1 . Overload Shots . | . . . . Overflow Damage 6 | . . . 6 Projectiles . | . . . . Explosions 6 | . . . 6 Melee . | . . . . Knockbacks 2 | . 2 . . Impact . | . . . . Kinetic 2 | . 2 . . Secondary . | . . . . Self-Inflicted Damage 121 | . . 7 114 Shots 1 | . . . 1 Rammed 2 | . 1 1 . Targets Rammed 2 | . 1 1 . Kicked . | . . . . Crushed . | . . . . Highest Temperature 21 | . . . 21 Average Temperature 7 | . . . 7 Received Heat Transfer 531 | . 54 45 432 Siege Activations . | . . . . Robots Corrupted . | . . . . Combat Hostiles . | . . . . Parts Fried . | . . . . Impact Corruptions . | . . . . Robots Melted . | . . . . Combat Hostiles . | . . . . Parts Melted . | . . . . Heat Transferred 222 | . . 111 111 Parts Sabotaged . | . . . . Parts Stolen . | . . . . Parts Stripped . | . . . . Power Chain Reactions . | . . . . Alert | -11 -10 -9 -8 ------- Run | Yrd Mat Mat Mat Peak Influence 274 | . 90 82 274 Initial 37 | . . 37 34 Average 56 | . 36 46 153 Maximum Alert Level 1 | . . . 1 Low Security (%) 93 | 100 100 100 63 Level 1 6 | . . . 36 Level 2 . | . . . . Level 3 . | . . . . Level 4 . | . . . . Level 5 . | . . . . High Security . | . . . . Max Security . | . . . . Squads Dispatched 3 | . 1 2 . Investigation 1 | . . 1 . Extermination . | . . . . Reinforcement 2 | . 1 1 . Assault . | . . . . Garrison . | . . . . Intercept . | . . . . Searches Triggered . | . . . . Construction Impeded . | . . . . Haulers Reinforced . | . . . . Active Scanning Responses . | . . . . Cargo Convoy Interrupts . | . . . . Stealth | -11 -10 -9 -8 --------- Run | Yrd Mat Mat Mat Distress Signals 5 | . 1 1 3 Communications Jammed . | . . . . Distress Signals . | . . . . Times Spotted 34 | . 8 7 19 Peak Tracking Total 11 | . 3 4 11 Tactical Retreats 3 | . . . 3 Traps | -11 -10 -9 -8 ------- Run | Yrd Mat Mat Mat Traps Triggered 1 | . . 1 . Indirectly . | . . . . Trap Hack Attempts . | . . . . Triggered . | . . . . Disarmed . | . . . . Reprogrammed . | . . . . Reused . | . . . . Traps Extracted . | . . . . Installed . | . . . . Triggered . | . . . . Machines | -11 -10 -9 -8 ---------- Run | Yrd Mat Mat Mat Machines Disabled 1 | . . . 1 Max in Single Turn 1 | . . . 1 Machines Repaired . | . . . . Machines Dismantled . | . . . . Machines Sabotaged . | . . . . Overloaded Fab Kills . | . . . . Hacking | -11 -10 -9 -8 --------- Run | Yrd Mat Mat Mat Machines Accessed 3 | . 1 2 . Terminals 3 | . 1 2 . Fabricators . | . . . . Repair Stations . | . . . . Recycling Units . | . . . . Scanalyzers . | . . . . Garrison Access . | . . . . Total Hacks 6 | . 2 4 . Successful 1 | . . 1 . Failed 5 | . 2 3 . Catastrophic 1 | . . 1 . Database Lockouts . | . . . . Manual 4 | . . 4 . Terminals 6 | . 2 4 . Fabricators . | . . . . Repair Stations . | . . . . Recycling Units . | . . . . Scanalyzers . | . . . . Garrison Access . | . . . . Terminal Hacks 1 | . . 1 . Recall Reinforcements 1 | . . 1 . Fabricator Hacks . | . . . . Repair Station Hacks . | . . . . Recycling Unit Hacks . | . . . . Scanalyzer . | . . . . Garrison Access Hacks . | . . . . Unauthorized Hacks . | . . . . Terminals . | . . . . Fabricators . | . . . . Repair Stations . | . . . . Recycling Units . | . . . . Scanalyzers . | . . . . Garrison Access . | . . . . Data Cores Recovered 1 | . 1 . . Used . | . . . . Hacking Detections 2 | . 1 1 . Full Trace Events 1 | . . 1 . Feedback Events 1 | . . 1 . Corruption 1 | . . 1 . Feedback Blocked . | . . . . Robot Schematics Acquired . | . . . . Robots Built . | . . . . Authchips . | . . . . Time . | . . . . Total Robot Build Rating . | . . . . Part Schematics Acquired . | . . . . Parts Built . | . . . . Authchips . | . . . . Time . | . . . . Total Part Build Rating . | . . . . Parts Repaired . | . . . . Time . | . . . . Parts Recycled . | . . . . Recycled Matter . | . . . . Retrieved Matter . | . . . . Retrieved Components . | . . . . Parts Scanalyzed . | . . . . Part Schematics Acquired . | . . . . Parts Damaged . | . . . . Bothacking | -11 -10 -9 -8 ------------ Run | Yrd Mat Mat Mat Used RIF Installer . | . . . . Robots Hacked . | . . . . Non-combat . | . . . . Combat . | . . . . Robot Hacks Applied . | . . . . Relay Couplers Released . | . . . . Fabnet Peak Effective % . | . . . . Robots Rewired . | . . . . Allies Hacked . | . . . . Hacks Repelled . | . . . . Allies | -11 -10 -9 -8 -------- Run | Yrd Mat Mat Mat Total Allies . | . . . . Largest Group . | . . . . Highest-Rated Group . | . . . . Highest-Rated Ally . | . . . . Total Orders . | . . . . Ally Attacks . | . . . . Total Damage . | . . . . Kills . | . . . . Allies Corrupted . | . . . . Allies Melted . | . . . . Intel | -11 -10 -9 -8 ------- Run | Yrd Mat Mat Mat Robot Analysis Total . | . . . . Derelict Logs Recovered . | . . . . Drone Launches . | . . . . Drone Recoveries . | . . . . Exploration | -11 -10 -9 -8 ------------- Run | Yrd Mat Mat Mat Turns Passed 635 | 59 263 206 107 Spaces Moved 547 | 53 136 263 95 Core 4 | 4 . . . Treads 137 | . 131 . 6 Legs . | . . . . Wheels 89 | 49 5 . 35 Hover 317 | . . 263 54 Flight . | . . . . Fastest Speed 50 | 50 80 52 52 Average Speed 91 | 77 157 65 79 Slowest Speed 160 | 80 160 132 160 Overloaded Moves . | . . . . Propulsion Burnouts . | . . . . Robots Hopped . | . . . . Cave-ins Triggered . | . . . . Exploration Rate (%) 20 | 4 31 28 20 Regions Visited 3 Branch Regions . Pre-discovered Areas . | . . . . Known Exits Taken . | . . . . Unknown Exits Taken 3 | 1 1 1 . Scrap Searched . | . . . . Spaces Dug . | . . . . Terrain Destroyed 26 | . . . 26 Melee . | . . . . Projectile 2 | . . . 2 AOE 24 | . . . 24 Terrain Rammed . | . . . . Walls Destroyed . | . . . . Machines Disabled . | . . . . Actions | -11 -10 -9 -8 --------- Run | Yrd Mat Mat Mat Total 645 | 70 172 286 117 Wait 3 | . 1 . 2 Move 544 | 52 135 262 95 Hop . | . . . . Pick Up 28 | 12 10 4 2 Fast Attach 8 | . 2 3 3 Attach 11 | 6 . 2 3 Detach 1 | . . . 1 Swap 8 | . 4 3 1 Drop 20 | . 10 6 4 Fire 20 | . 9 5 6 Melee . | . . . . Ram 1 | . . 1 . Kick . | . . . . Crush 1 | . 1 . . Escape Stasis . | . . . . Rewire . | . . . . Trap . | . . . . Miscellaneous . | . . . . Route ------- -11/Scrapyard -10/Materials (discovered 2 exits: *Mat / [*Min]) -9/Materials -8/Materials (discovered 1 exit: [*Sto]) History --------- Turn | Location | Event 7 | -11/Scrapyard | Discovered new exit (range 16) 60 | -11/Scrapyard | Entered Materials 198 | -10/Materials | Discovered new exit (range 11) 309 | -10/Materials | Discovered new exit (range 10) 314 | -10/Materials | Build established: Mutant 323 | -10/Materials | Entered another Materials area 323 | -9/Materials | Evolved 2 slots: Propulsion x2 525 | -9/Materials | Discovered new exit (range 7) 529 | -9/Materials | Entered another Materials area 529 | -8/Materials | Evolved 2 slots: Power x1, Utility x1 560 | -8/Materials | Discovered new exit (range 15) 627 | -8/Materials | Core integrity fell below 50% 634 | -8/Materials | Core integrity fell below 20% 636 | -8/Materials | Destroyed by G-47 Trooper with Particle Gun Last Messages --------------- 00625_ Acquired Lgt. Nuclear Core. 00625_ U-05 Engineer lays Concrete. 00626_ The unstable cave ceiling collapses. 00626_ U-05 Engineer lays Concrete. 00627_ Processing Tank disabled. 00628_ M-28 Smith repairs H-55 Commando. 00628_ U-05 Engineer lays Concrete. 00628_ Critical hit (Burn: +37). 00629_ U-05 Engineer lays Concrete. 00629_ R-06 Scavenger collects Imp. Signal Interpreter. 00630_ U-05 Engineer lays Concrete. 00632_ Lgt. Nuclear Core destroyed. 00632_ U-05 Engineer lays Concrete. 00632_ Critical hit (Burn: +37). 00633_ U-05 Engineer lays Concrete. 00633_ Slug penetrates Wall. 00634_ U-05 Engineer lays Concrete. 00636_ Penetrated by Slug. 00636_ Imp. Treads destroyed. 00636_ Knocked back. Map ----- +----------------------------------------------------+ | ?????????????????? #??? | | ???????????????????? """"" #??? | | ??????????????????"" """"" ############# +??? | | ???????????????""""" """"" # [ #????? #??? | | ?????????????? # !#????? #??? | | ?????????????? + #????? #??? | | ????????????????"""" """"" # """ #????? #??? | | ????????????????"""" """"" # """ #????? #??? | | ???????????????"""" """"" #?""" #?????? ?#??? | | ????????????? #?######???????????? | | ???????????# #??????????????????? | | ???????????# """"" """" #??????????????????? | | ????????#### """"" """" #??????????????????? | | ??????? """"" """"" #??????????????????? | | ??????? #??????????????????? | | ??????? #??????????????????? | | ???????????# #??????????????????? | | ???????????# ### gg #??????????????????? | | ???????????# ?# m #??????????????????? | | ???????????# # ####??????????????????? | | ???????????# g # #????????????????????? | | ??????????+ % # #????????????????????? | | ???????????###### #????????????????????? | | ????????????????# % ####?????????????????? | | ????????????????# u #?????????????????? | | ????????????????## """ %@b "#?????????????????? | | ?????????????????# "G r T#?????????????????? | | ?????????????????# """ /H# "#?????????????????? | | ?????????????????# a# g #?????????????????? | | ?????????????????########/# Y #?????????????????? | | ????????????????????????# # #?????????????????? | | ????????????????????????# #[ ]gm ????????????????? | | ????????????????????????# # # #???????????????? | | ????????????????????????# ######+#???????????????? | | ????????????????????????#r#??????????????????????? | | ???????????????????????? ??????????????????????? | | ???????????????????????? ??????????????????????? | | ???????????????????????? ??????????????????????? | | ???????????????????????? ???????????????????????? | | ?????????????????????????#???????????????????????? | | ?????????????????????????????????????????????????? | | ?????????????????????????????????????????????????? | | ?????????????????????????????????????????????????? | | ?????????????????????????????????????????????????? | | ?????????????????????????????????????????????????? | | ?????????????????????????????????????????????????? | | ?????????????????????????????????????????????????? | | ?????????????????????????????????????????????????? | | ?????????????????????????????????????????????????? | | ?????????????????????????????????????????????????? | +----------------------------------------------------+ Best States ------------- Heat Dissipation 75 Energy Generation 14 Energy Capacity 265 Matter Stores 213 Matter Capacity 300 Sight Range 16 Terrain Scan Density 10 Evasion (%) 54 Recoil Reduction 2 Item Schematics ----------------- None Robot Schematics ------------------ None Fabricated ------------ Nothing Alien Tech Used ----------------- None Achievements -------------- None Challenges ------------ None Game ------ Seed MyomerScrapCapacitor Manual? 0 Play Time 00:11:42 Cumulative 65.3 hours Start 2024.06.26 @ 18:50:56 End 2024.06.26 @ 19:00:40 Sessions 1 Manual Loads 0 Difficulty Rogue Special Mode None Game No. 96 Rogue 96 Adventurer 0 Explorer 0 Win Type - Total 0 Types 0/0/0/0/0/0/0/0/0 Lore% 34 Gallery% 48 Achievement% 32 Wizard Run 0 Options --------- Layout 0 ASCII 0 Keyboard 0 Movement Mouse Keybinds 0 Fullscreen 1 Font 24/Smallcaps Map View 76x50 Zoom Use 0% Tactical HUD 1 Map Filters NONE Filters NONE Steam 1 RUN: c60880f9-20e2-471e-8fdd-096350037c4a